fUSD/lending_fUSD_20241114
["ID","MTS","AMOUNT","RATE_DAILY","PERIOD"]
[342237355,1731615037914,-3746.0,9.999e-05,2]
[342237356,1731615037924,-651.18628304,9.999e-05,2]
[342237357,1731615037935,-371232.250844,0.0001,2]
[342237358,1731615037952,-1442.4291713,0.0001,2]
[342237359,1731615037967,-10580.54461011,0.0001,2]
[342237360,1731615037979,-1000.0,0.0001,2]
[342237361,1731615037992,-2846.1830121,0.0001,2]
[342237363,1731615038016,-98328.15234647,0.0001,2]
[342237375,1731615039544,-443.49021,0.0001,2]
[342237376,1731615039557,-445.51507,0.0001,2]
[342237377,1731615039602,-3673.77999996,0.0001,2]
[342237378,1731615039615,-5602.7959869,0.0001,2]
[342237379,1731615039626,-295.2679983,0.0001,2]
[342237380,1731615039638,-442.02,0.0001,2]
[342237381,1731615039657,-8852.0,0.0001,2]
[342237382,1731615039669,-432.18335078,0.0001,2]
[342237383,1731615039770,-4461.00142383,0.0001,2]
[342237384,1731615039781,-1015.75187423,0.0001,2]
[342237388,1731615042468,-378.66275766,0.0001,2]
[342237389,1731615042524,-15741.0,0.0001,2]
[342237390,1731615042632,-851.70976804,0.0001,2]
[342237391,1731615042695,-3593.2143914,0.0001,2]
[342237394,1731615044265,-43167.84396107,0.0001,2]
[342237395,1731615044292,-178419.96622922,0.0001,2]
[342237396,1731615044305,-524.63461019,0.0001,2]
[342237399,1731615045499,-3536.50443275,9.954e-05,2]
[342237400,1731615045511,-12028.49556725,0.0001,2]
[342237401,1731615045526,-9701.22133029,0.0001,2]
[342237402,1731615045662,-781.6,0.0001,2]
[342237403,1731615045718,-452446.82986453,0.0001,2]
[342237404,1731615045827,-3049.39215,0.0001,2]
[342237405,1731615045881,-1247.98589308,0.0001,2]
[342237418,1731616148134,-707.5404,8.219e-05,2]
[342237513,1731616233219,-374.8196,8.219e-05,2]
[342237514,1731616233228,-1563.52,9.089e-05,2]
[342237515,1731616233241,-250.0,9.171e-05,2]
[342237516,1731616233250,-1000.0,9.211e-05,2]
[342237517,1731616233260,-243.38,9.241e-05,2]
[342237518,1731616233269,-250.0,9.254e-05,2]
[342237519,1731616233281,-167.0,9.509e-05,2]
[342237520,1731616233298,-672.0,9.62e-05,2]
[342237521,1731616233307,-292.3406,9.754e-05,2]
[342237522,1731616233317,-300.0,9.852e-05,2]
[342237523,1731616233327,-335.28,9.853e-05,2]
[342237524,1731616233336,-299.99,9.853e-05,2]
[342237525,1731616233346,-3580.45,9.853e-05,2]
[342237526,1731616233357,-150.0,9.853e-05,2]
[342237527,1731616233367,-42768.7239,9.854e-05,2]
[342237528,1731616233376,-1409.5851,9.854e-05,2]
[342237529,1731616233386,-834.7702,9.854e-05,2]
[342237530,1731616233395,-1488.14060207,9.854e-05,2]
[342237531,1731616233410,-8802.34926338,9.854e-05,2]
[342237532,1731616233425,-365.19994533,9.854e-05,2]
[342237533,1731616233441,-3031.72509935,9.854e-05,2]
[342237534,1731616233455,-22618.74988987,9.854e-05,2]
[342237535,1731616233464,-29999.99,9.854e-05,2]
[342237536,1731616233474,-5823.9661,9.899e-05,2]
[342237537,1731616233484,-2922.3208,9.9e-05,2]
[342237538,1731616233494,-7143.6113,9.9e-05,2]
[342237539,1731616233504,-1000.0,9.9e-05,2]
[342237540,1731616233514,-500.0,9.92e-05,2]
[342237541,1731616233524,-891.86,9.943e-05,2]
[342237542,1731616233536,-500.0,9.973e-05,2]
[342237543,1731616233546,-500.0,9.973e-05,2]
[342237544,1731616233556,-441052.70320019,9.98e-05,2]
[342237545,1731616233566,-8058.0785746,9.99e-05,2]
[342237546,1731616233576,-1374.6413125,9.992e-05,2]
[342237547,1731616233586,-821.1299423,9.992e-05,2]
[342237548,1731616233595,-403.0915506,9.992e-05,2]
[342237549,1731616233605,-3292.9816008,9.992e-05,2]
[342237550,1731616233615,-4396.9426566,9.992e-05,2]
[342237551,1731616233625,-735.987495,9.992e-05,2]
[342237552,1731616233635,-1211.6262994,9.993e-05,2]
[342237553,1731616233644,-1048.6112863,9.993e-05,2]
[342237554,1731616233654,-885.5962731,9.993e-05,2]
[342237555,1731616233665,-723.7543527,9.993e-05,2]
[342237556,1731616233675,-626.3787631,9.993e-05,2]
[342237557,1731616233686,-529.0031734,9.993e-05,2]
[342237558,1731616233696,-355.2900086,9.993e-05,2]
[342237559,1731616233707,-307.4884666,9.993e-05,2]
[342237560,1731616233717,-259.6869246,9.993e-05,2]
[342237561,1731616233727,-2905.6157572,9.993e-05,2]
[342237562,1731616233740,-2518.2499137,9.993e-05,2]
[342237563,1731616233750,-2130.8840701,9.993e-05,2]
[342237564,1731616233760,-3879.713711,9.993e-05,2]
[342237565,1731616233769,-3362.4847654,9.993e-05,2]
[342237566,1731616233779,-2845.2558198,9.993e-05,2]
[342237567,1731616233788,-1924.0,9.999e-05,2]
[342237568,1731616233798,-560.0,9.999e-05,2]
[342237569,1731616233807,-1259.0,9.999e-05,2]
[342237570,1731616233817,-814.0,9.999e-05,2]
[342237571,1731616233826,-921.0,9.999e-05,2]
[342237572,1731616233836,-3489.0,9.999e-05,2]
[342237573,1731616233845,-3746.0,9.999e-05,2]
[342237574,1731616233855,-150.0,9.999e-05,2]
[342237575,1731616233864,-453.0,9.999e-05,2]
[342237576,1731616233874,-1255.0,9.999e-05,2]
[342237577,1731616233883,-151.0,9.999e-05,2]
[342237578,1731616233892,-30000.0,9.999e-05,2]
[342237579,1731616233901,-358.15245567,9.999e-05,2]
[342237580,1731616233910,-395019.93589716,0.0001,2]
[342237581,1731616233922,-604441.45338678,0.0001,2]
[342237582,1731616233933,-33535.03014202,0.0001,2]
[342237583,1731616233958,-22025.0,0.0001,2]
[342237584,1731616233969,-2321.82179632,0.0001,2]
[342237588,1731616237703,-60311.55928,0.0001,2]
[342237589,1731616237715,-3529.91696682,0.0001,2]
[342237590,1731616237727,-2041.83709369,0.0001,2]
[342237591,1731616237745,-2160.3682046,0.0001,2]
[342237593,1731616238216,-952.91,0.0001,2]
[342237594,1731616238248,-29279.30646409,0.0001,2]
[342237595,1731616238259,-8521.98461197,0.0001,2]
[342237598,1731616239698,-628.0,9.999e-05,2]
[342237599,1731616239708,-124.07150887,0.0001,2]
[342237600,1731616239720,-8558.67957655,0.0001,2]
[342237601,1731616239863,-1432.836,0.0001,2]
[342237602,1731616239874,-11602.0770647,0.0001,2]
[342237614,1731616242678,-286.52196454,9.999e-05,2]
[342237615,1731616242688,-3336.49302955,0.0001,2]
[342237617,1731616242700,-1269.5741485,0.0001,2]
[342237619,1731616242743,-44522.61282633,0.0001,2]
[342237620,1731616242967,-3621.47289926,0.0001,2]
[342237621,1731616242978,-3250.8817337,0.0001,2]
[342237622,1731616243022,-349.65031497,0.0001,2]
[342237623,1731616243034,-199802.76399526,0.0001,2]
[342237624,1731616243046,-90741.2679516,0.0001,2]
[342237635,1731616245656,-1992.0,9.999e-05,2]
[342237636,1731616245666,-1320.3199986,0.0001,2]
[342237637,1731616245677,-356.25841718,0.0001,2]
[342237638,1731616245688,-905.1666335,0.0001,2]
[342237639,1731616245722,-516.37,0.0001,2]
[342237640,1731616245734,-803.604,0.0001,2]
[342237641,1731616245784,-867.12300808,0.0001,2]
[342237642,1731616245845,-610.54517073,0.0001,2]
[342237643,1731616245856,-1547.60324,0.0001,2]
[342237644,1731616245961,-1770.76,0.0001,2]
[342237677,1731617351184,-1039.5252,8.219e-05,2]
[342237693,1731617431869,-27.7748,8.219e-05,2]
[342237695,1731617431880,-250.0,9.124e-05,2]
[342237696,1731617431890,-537.6,9.124e-05,2]
[342237697,1731617431901,-243.38,9.171e-05,2]
[342237698,1731617431911,-1000.0,9.176e-05,2]
[342237699,1731617431920,-250.0,9.342e-05,2]
[342237700,1731617431930,-155.37,9.454e-05,2]
[342237701,1731617431939,-262.4,9.478e-05,2]
[342237702,1731617431949,-150.0,9.863e-05,2]
[342237703,1731617431958,-2548.58529586,9.87e-05,2]
[342237704,1731617431970,-591.92852923,9.87e-05,2]
[342237705,1731617431982,-2028.08171942,9.87e-05,2]
[342237706,1731617432013,-1695.501234,9.87e-05,2]
[342237707,1731617432025,-37557.11660976,9.87e-05,2]
[342237708,1731617432035,-1504.267,9.88e-05,2]
[342237709,1731617432044,-150.99,9.88e-05,2]
[342237710,1731617432054,-999.99,9.88e-05,2]
[342237711,1731617432064,-6589.3,9.88e-05,2]
[342237712,1731617432074,-150.0,9.899e-05,2]
[342237713,1731617432084,-162.11,9.899e-05,2]
[342237714,1731617432094,-299.99,9.899e-05,2]
[342237715,1731617432104,-3003.6859,9.9e-05,2]
[342237716,1731617432114,-4653.5476521,9.9e-05,2]
[342237717,1731617432125,-594.70058894,9.9e-05,2]
[342237718,1731617432137,-1866.47148544,9.9e-05,2]
[342237719,1731617432156,-5594.45233103,9.9e-05,2]
[342237720,1731617432168,-1342.42776,9.9e-05,2]
[342237721,1731617432179,-1300.0,9.9e-05,2]
[342237722,1731617432191,-1742.51248249,9.9e-05,2]
[342237723,1731617432200,-1346.22515301,9.9e-05,2]
[342237724,1731617432212,-9667.75074699,9.9e-05,2]
[342237725,1731617432223,-1867.0,9.9e-05,2]
[342237727,1731617432232,-500.0,9.92e-05,2]
[342237729,1731617432242,-1035.456,9.959e-05,2]
[342237731,1731617432252,-500.0,9.973e-05,2]
[342237733,1731617432261,-970.4164555,9.987e-05,2]
[342237735,1731617432271,-724.1863766,9.987e-05,2]
[342237737,1731617432282,-2062.4698147,9.987e-05,2]
[342237740,1731617432292,-1112.0920876,9.987e-05,2]
[342237742,1731617432301,-375.96922454,9.992e-05,2]
[342237743,1731617432312,-858.1715268,9.993e-05,2]
[342237745,1731617432322,-745.9265982,9.993e-05,2]
[342237746,1731617432331,-633.6816695,9.993e-05,2]
[342237747,1731617432341,-641.1565332,9.993e-05,2]
[342237748,1731617432351,-558.1266898,9.993e-05,2]
[342237749,1731617432361,-475.0968464,9.993e-05,2]
[342237750,1731617432371,-1828.1935643,9.993e-05,2]
[342237751,1731617432381,-1593.9173138,9.993e-05,2]
[342237752,1731617432391,-1359.6410633,9.993e-05,2]
[342237753,1731617432401,-985.7693833,9.993e-05,2]
[342237754,1731617432411,-859.4466791,9.993e-05,2]
[342237755,1731617432420,-733.1239748,9.993e-05,2]
[342237756,1731617432429,-1255.0,9.999e-05,2]
[342237757,1731617432439,-453.0,9.999e-05,2]
[342237758,1731617432448,-1992.0,9.999e-05,2]
[342237759,1731617432458,-628.0,9.999e-05,2]
[342237760,1731617432467,-563.0,9.999e-05,2]
[342237761,1731617432476,-560.0,9.999e-05,2]
[342237762,1731617432486,-1259.0,9.999e-05,2]
[342237763,1731617432496,-814.0,9.999e-05,2]
[342237764,1731617432505,-921.0,9.999e-05,2]
[342237765,1731617432515,-3489.0,9.999e-05,2]
[342237766,1731617432524,-3746.0,9.999e-05,2]
[342237767,1731617432533,-150.0,9.999e-05,2]
[342237768,1731617432543,-150.0,9.999e-05,2]
[342237769,1731617432553,-10298.23495653,9.999e-05,2]
[342237770,1731617432563,-229.21757163,9.999e-05,2]
[342237771,1731617432573,-1070.37044303,9.999e-05,3]
[342237772,1731617432582,-366516.32467057,0.0001,2]
[342237773,1731617432595,-495.72833055,0.0001,2]
[342237774,1731617432606,-332.17124173,0.0001,2]
[342237775,1731617437913,-150.0,9.999e-05,2]
[342237776,1731617437923,-1230.94,0.0001,2]
[342237777,1731617437934,-88655.36199612,0.0001,2]
[342237778,1731617437946,-36220.06710381,0.0001,2]
[342237779,1731617437957,-4735.87429009,0.0001,2]
[342237780,1731617437972,-2006173.33142263,0.0001,2]
[342237781,1731617438034,-357.42178166,0.0001,2]
[342237782,1731617438046,-254.38578374,0.0001,2]
[342237783,1731617438057,-3353.94450525,0.0001,2]
[342237784,1731617438092,-280.75704129,0.0001,2]
[342237791,1731617439809,-5365.71747114,0.0001,2]
[342237792,1731617439868,-1139.22878096,0.0001,2]
[342237793,1731617439882,-952.47687904,0.0001,2]
[342237794,1731617439926,-500.0,0.0001,2]
[342237795,1731617439938,-1798.57665418,0.0001,2]
[342237796,1731617439984,-413849.90543843,0.0001,2]
[342237797,1731617440041,-11442.45491115,0.0001,2]
[342237798,1731617440099,-8782.5,0.0001,2]
[342237799,1731617440111,-898.6405602,0.0001,2]
[342237800,1731617440123,-1070.85617196,0.0001,2]
[342237801,1731617440135,-8363.20742876,0.0001,2]
[342237802,1731617440146,-642.97607776,0.0001,2]
[342237812,1731617442847,-5987.28117471,0.0001,2]
[342237813,1731617442858,-1258.95782212,0.0001,2]
[342237814,1731617442869,-5979.69200007,0.0001,2]
[342237815,1731617442883,-69168.25916464,0.0001,2]
[342237816,1731617442908,-4540.0,0.0001,2]
[342237817,1731617442920,-35020.2767191,0.0001,2]
[342237818,1731617442932,-76826.3852096,0.0001,2]
[342237819,1731617443013,-6321.66878126,0.0001,2]
[342237820,1731617443070,-525.50235346,0.0001,2]
[342237821,1731617443127,-1070.37044303,0.0001,2]
[342237822,1731617443138,-1269.628188,0.0001,2]
[342237823,1731617443149,-228655.98538851,0.0001,2]
[342237824,1731617443165,-145365.29979061,0.0001,2]
[342237825,1731617443176,-17879.03102745,0.0001,2]
[342237840,1731617446619,-2555.49826663,0.0001,2]
[342237841,1731617446631,-6417.7600647,0.0001,2]
[342237842,1731617446642,-498.74334112,0.0001,2]
[342237843,1731617446653,-20378.12828835,0.0001,2]
[342237844,1731617446666,-887.405,0.0001,2]
[342237845,1731617446678,-597.50039743,0.0001,2]
[342237846,1731617446694,-33231.33035784,0.0001,2]
[342237847,1731617446705,-1657.21148328,0.0001,2]
[342237848,1731617446724,-659.77209503,0.0001,2]
[342237849,1731617446736,-348.46752784,0.0001,2]
[342237850,1731617446747,-425.92182717,0.0001,2]
[342237851,1731617446759,-379.71008372,0.0001,2]
[342237852,1731617446771,-1104.89183922,0.0001,2]
[342237853,1731617446782,-1526.45862146,0.0001,2]
[342237867,1731618425864,2001.74,0.0002,60]
[342237868,1731618441128,-893.93267947,8.219e-05,2]
[342237881,1731618632000,-165.93732053,8.219e-05,2]
[342237884,1731618632010,-400.0,9e-05,3]
[342237887,1731618632020,-900.0,9.1e-05,3]
[342237890,1731618632029,-1400.0,9.2e-05,3]
[342237893,1731618632041,-565.07675024,9.3e-05,3]
[342237898,1731618632064,-536.49178205,9.3e-05,3]
[342237902,1731618632077,-698.43146771,9.3e-05,3]
[342237905,1731618632087,-250.0,9.315e-05,2]
[342237908,1731618632096,-160.0,9.353e-05,2]
[342237911,1731618632106,-250.0,9.385e-05,2]
[342237914,1731618632115,-300.0,9.399e-05,2]
[342237917,1731618632125,-2300.0,9.4e-05,3]
[342237920,1731618632135,-400.0,9.5e-05,3]
[342237923,1731618632146,-400.0,9.6e-05,3]
[342237926,1731618632156,-3273.0,9.606e-05,2]
[342237929,1731618632171,-1000.0,9.639e-05,2]
[342237932,1731618632181,-150.99,9.67e-05,2]
[342237935,1731618632192,-400.0,9.7e-05,3]
[342237938,1731618632201,-400.0,9.8e-05,3]
[342237941,1731618632213,-150.0,9.821e-05,2]
[342237944,1731618632223,-1000.0,9.9e-05,2]
[342237946,1731618632233,-1000.0,9.9e-05,2]
[342237948,1731618632243,-1000.0,9.9e-05,2]
[342237950,1731618632256,-1000.0,9.9e-05,2]
[342237953,1731618632267,-1000.0,9.9e-05,2]
[342237956,1731618632277,-1000.0,9.9e-05,2]
[342237959,1731618632288,-1000.0,9.9e-05,2]
[342237962,1731618632298,-1000.0,9.9e-05,2]
[342237965,1731618632312,-1000.0,9.9e-05,2]
[342237968,1731618632323,-1000.0,9.9e-05,2]
[342237971,1731618632333,-1000.0,9.9e-05,2]
[342237974,1731618632344,-1000.0,9.9e-05,2]
[342237977,1731618632355,-712.0,9.9e-05,2]
[342237979,1731618632365,-1033.0,9.9e-05,3]
[342237982,1731618632378,-500.0,9.92e-05,2]
[342237985,1731618632388,-500.0,9.973e-05,2]
[342237988,1731618632398,-543.44,9.989e-05,2]
[342237990,1731618632407,-181.2133061,9.992e-05,2]
[342237992,1731618632417,-471.1107236,9.992e-05,2]
[342237994,1731618632426,-982.029557,9.992e-05,2]
[342237995,1731618632437,-701.1041629,9.992e-05,2]
[342237997,1731618632447,-662.692,9.993e-05,2]
[342237999,1731618632456,-181.2133061,9.993e-05,2]
[342238001,1731618632466,-181.2133061,9.993e-05,2]
[342238003,1731618632476,-181.2133061,9.993e-05,2]
[342238005,1731618632486,-417.0966592,9.993e-05,2]
[342238006,1731618632496,-363.0825948,9.993e-05,2]
[342238008,1731618632506,-309.0685303,9.993e-05,2]
[342238010,1731618632516,-868.4413785,9.993e-05,2]
[342238012,1731618632526,-754.8532,9.993e-05,2]
[342238019,1731618632847,-641.2650215,9.993e-05,2]
[342238020,1731618632860,-453.0,9.999e-05,2]
[342238021,1731618632870,-1255.0,9.999e-05,2]
[342238022,1731618632879,-628.0,9.999e-05,2]
[342238023,1731618632888,-1992.0,9.999e-05,2]
[342238024,1731618632898,-563.0,9.999e-05,2]
[342238025,1731618632907,-560.0,9.999e-05,2]
[342238026,1731618632916,-1259.0,9.999e-05,2]
[342238027,1731618632925,-814.0,9.999e-05,2]
[342238028,1731618632934,-921.0,9.999e-05,2]
[342238029,1731618632944,-3489.0,9.999e-05,2]
[342238030,1731618632953,-3746.0,9.999e-05,2]
[342238031,1731618632963,-229.21757163,9.999e-05,2]
[342238032,1731618632972,-943.21498095,9.999e-05,3]
[342238033,1731618632982,-3375.80112751,0.0001,2]
[342238034,1731618633003,-394.44802972,0.0001,2]
[342238035,1731618633029,-44429.85905559,0.0001,2]
[342238036,1731618633040,-250.0,0.0001,2]
[342238037,1731618633052,-858.05,0.0001,2]
[342238038,1731618633068,-7077.38677632,0.0001,2]
[342238039,1731618633080,-285.29701288,0.0001,2]
[342238040,1731618633092,-5417.00955669,0.0001,2]
[342238041,1731618633104,-67960.57182696,0.0001,2]
[342238042,1731618633117,-2617.89,0.0001,2]
[342238043,1731618633130,-162952.09129632,0.0001,2]
[342238044,1731618633142,-41279.71926795,0.0001,2]
[342238045,1731618633154,-874.01,0.0001,2]
[342238049,1731618638093,-113087.52995296,0.0001,2]
[342238050,1731618638105,-3890.47033098,0.0001,2]
[342238051,1731618638117,-2252119.30834071,0.0001,2]
[342238052,1731618638128,-26350.536,0.0001,2]
[342238053,1731618638152,-1810.94730776,0.0001,2]
[342238054,1731618638322,-608.91085995,0.0001,2]
[342238055,1731618638334,-358.64999988,0.0001,2]
[342238056,1731618638348,-351.7514,0.0001,2]
[342238057,1731618638386,-397.16,0.0001,2]
[342238058,1731618638399,-29780.32870154,0.0001,2]
[342238059,1731618638411,-4904.09405828,0.0001,2]
[342238060,1731618638424,-2151938.12896762,0.0001,2]
[342238061,1731618638437,-2008.69765136,0.0001,2]
[342238074,1731618640131,-2705.2966612,0.0001,2]
[342238075,1731618640143,-5813.32825801,0.0001,2]
[342238076,1731618640191,-436.015,0.0001,2]
[342238077,1731618640202,-349.68026367,0.0001,2]
[342238078,1731618640214,-940.97555775,0.0001,2]
[342238079,1731618640253,-352.147796,0.0001,2]
[342238080,1731618640263,-4365.4,0.0001,2]
[342238087,1731618643208,-875.805168,0.0001,2]
[342238088,1731618643267,-5448.99190317,0.0001,2]
[342238089,1731618643278,-2527.39903753,0.0001,2]
[342238090,1731618643289,-5989.29759878,0.0001,2]
[342238091,1731618643325,-6600.0,0.0001,2]
[342238092,1731618643336,-3169.18036078,0.0001,2]
[342238093,1731618643348,-8500.13936578,0.0001,2]
[342238094,1731618643359,-1489.70241815,0.0001,2]
[342238095,1731618643369,-3552.78630055,0.0001,2]
[342238107,1731618647143,-1131.02778576,0.0001,2]
[342238108,1731618647159,-780.34374136,0.0001,2]
[342238109,1731618647173,-830.73942336,0.0001,2]
[342238110,1731618647190,-263.658,0.0001,2]
[342238111,1731618647201,-508.08145989,0.0001,2]
[342238112,1731618647213,-1977.38235,0.0001,2]
[342238113,1731618647228,-8732.5,0.0001,2]
[342238114,1731618739620,179.456,0.0001718,60]
[342238121,1731619630152,-1055.88,8.219e-05,2]
[342238122,1731619630172,-2689.962818,8.955e-05,2]
[342238123,1731619630192,-2005.4790077,9e-05,2]
[342238124,1731619630214,-695.827,9.216e-05,2]
[342238125,1731619630235,-1000.0,9.305e-05,2]
[342238126,1731619630255,-500.0,9.383e-05,2]
[342238127,1731619630276,-1380.54705924,9.403e-05,3]
[342238128,1731619630296,-150.0,9.403e-05,2]
[342238129,1731619630319,-1303.10467374,9.404e-05,2]
[342238161,1731619832250,-150.0,9.403e-05,2]
[342238162,1731619832259,-398.10548649,9.404e-05,2]
[342238163,1731619832270,-131215.1462643,9.404e-05,2]
[342238164,1731619832346,-283.06794255,9.404e-05,2]
[342238165,1731619832357,-42403.23220957,9.404e-05,2]
[342238166,1731619832497,-8705.0,9.404e-05,2]
[342238167,1731619832514,-4124.57614731,9.404e-05,2]
[342238168,1731619832525,-17880.47659936,9.404e-05,2]
[342238177,1731619840191,-4498.36878034,9.404e-05,2]
[342238178,1731619840204,-1587.76626,9.404e-05,2]
[342238179,1731619840216,-2586.30599731,9.404e-05,2]
[342238180,1731619840230,-2850.26475934,9.404e-05,2]
[342238181,1731619840247,-9873.09232791,9.404e-05,2]
[342238182,1731619840258,-1944407.30144583,9.404e-05,2]
[342238183,1731619840286,-2984193.65071037,9.404e-05,2]
[342238184,1731619840298,-386.412858,9.404e-05,2]
[342238185,1731619840329,-615609.31227265,9.404e-05,2]
[342238193,1731619840530,-310.26646163,9.404e-05,2]
[342238195,1731619840543,-428.80282192,9.404e-05,2]
[342238197,1731619840556,-1509.64259488,9.404e-05,2]
[342238198,1731619840567,-4221.63229795,9.404e-05,2]
[342238200,1731619840579,-147330.64108855,9.404e-05,2]
[342238201,1731619840588,-11765.70090267,9.5e-05,2]
[342238202,1731619840598,-234.29815521,9.5e-05,2]
[342238203,1731619840607,-65432.27702491,9.5e-05,2]
[342238204,1731619840616,-250.0,9.528e-05,2]
[342238205,1731619840628,-672.0,9.584e-05,2]
[342238206,1731619840638,-234.2981552,9.75e-05,2]
[342238207,1731619840648,-2357.66962182,9.75e-05,2]
[342238208,1731619840657,-24166.20042354,9.75e-05,2]
[342238209,1731619840672,-690.34200092,9.75e-05,2]
[342238210,1731619840683,-465.89499845,9.75e-05,2]
[342238211,1731619840694,-1193.98296712,9.75e-05,2]
[342238212,1731619840706,-1259.96086,9.75e-05,2]
[342238213,1731619840800,-12186.67883243,9.75e-05,2]
[342238214,1731619840819,-470.19724567,9.75e-05,2]
[342238216,1731619843258,-24999.01969678,9.75e-05,2]
[342238217,1731619843268,-250.0,9.877e-05,2]
[342238218,1731619843278,-500.0,9.92e-05,2]
[342238219,1731619843288,-1992.0,9.939e-05,2]
[342238220,1731619843297,-500.0,9.973e-05,2]
[342238221,1731619843307,-156.9609179,9.992e-05,2]
[342238222,1731619843316,-362.4266122,9.992e-05,2]
[342238224,1731619843326,-456.0948679,9.992e-05,2]
[342238225,1731619843335,-156.9609179,9.993e-05,2]
[342238226,1731619843344,-156.9609179,9.993e-05,2]
[342238227,1731619843354,-156.9609179,9.993e-05,2]
[342238228,1731619843363,-560.0,9.999e-05,2]
[342238229,1731619843372,-814.0,9.999e-05,2]
[342238230,1731619843382,-1259.0,9.999e-05,2]
[342238231,1731619843391,-3746.0,9.999e-05,2]
[342238232,1731619843401,-2270.944,9.999e-05,2]
[342238233,1731619843411,-301.742,9.999e-05,2]
[342238234,1731619843420,-150.0,9.999e-05,2]
[342238235,1731619843430,-1255.0,9.999e-05,2]
[342238236,1731619843439,-453.0,9.999e-05,2]
[342238237,1731619843449,-171.91317872,9.999e-05,2]
[342238238,1731619843459,-3031.80615286,0.0001,2]
[342238239,1731619843472,-11580.3,0.0001,2]
[342238240,1731619843484,-3256.75971055,0.0001,2]
[342238241,1731619843496,-2185.95480085,0.0001,2]
[342238242,1731619843518,-262.98341463,0.0001,2]
[342238243,1731619843530,-513.18500005,0.0001,2]
[342238244,1731619843551,-5227.42273243,0.0001,2]
[342238245,1731619843564,-5045.11170417,0.0001,2]
[342238246,1731619843575,-496.05836076,0.0001,2]
[342238247,1731619843587,-6614.64257204,0.0001,2]
[342238248,1731619843598,-2832.38617879,0.0001,2]
[342238249,1731619843614,-22959.98544512,0.0001,2]
[342238250,1731619843627,-5748.18071088,0.0001,2]
[342238254,1731619846305,-563.0,9.939e-05,2]
[342238255,1731619846316,-4623.65397176,0.0001,2]
[342238256,1731619846390,-2076.42009453,0.0001,2]
[342238257,1731619846402,-137052.17643417,0.0001,2]
[342238258,1731619846477,-13120.271346,0.0001,2]
[342238259,1731619846489,-259.842667,0.0001,2]
[342238260,1731619846501,-1647.1,0.0001,2]
[342238261,1731619846513,-88099.49247676,0.0001,2]
[342238269,1731620018167,750.0,0.0002,60]
[342238277,1731620962151,-849.072,8.219e-05,2]
[342238289,1731621031392,-229.558,8.219e-05,2]
[342238290,1731621031402,-225.36729219,9.492e-05,2]
[342238291,1731621031547,-35.52270781,9.492e-05,2]
[342238292,1731621031556,-250.0,9.501e-05,2]
[342238293,1731621031566,-250.0,9.538e-05,2]
[342238294,1731621031575,-166.06,9.584e-05,2]
[342238295,1731621031584,-1000.0,9.755e-05,2]
[342238296,1731621031593,-500.0,9.8e-05,2]
[342238297,1731621031603,-500.0,9.8e-05,2]
[342238298,1731621031612,-500.0,9.8e-05,2]
[342238299,1731621031621,-500.0,9.8e-05,2]
[342238300,1731621031630,-11584.84203531,9.9e-05,2]
[342238301,1731621031642,-451.94405777,9.9e-05,2]
[342238302,1731621031651,-150.0,9.918e-05,2]
[342238303,1731621031660,-500.0,9.92e-05,2]
[342238304,1731621031668,-150.0,9.938e-05,2]
[342238305,1731621031678,-74452.32046149,9.939e-05,2]
[342238306,1731621031687,-556.661,9.969e-05,2]
[342238307,1731621031696,-500.0,9.973e-05,2]
[342238308,1731621031705,-313.9218358,9.992e-05,2]
[342238309,1731621031715,-1254.0,9.999e-05,2]
[342238310,1731621031724,-453.0,9.999e-05,2]
[342238311,1731621031733,-150.0,9.999e-05,2]
[342238312,1731621031743,-563.0,9.999e-05,2]
[342238313,1731621031752,-1992.0,9.999e-05,2]
[342238314,1731621031761,-628.0,9.999e-05,2]
[342238315,1731621031770,-1923.0,9.999e-05,2]
[342238316,1731621031780,-560.0,9.999e-05,2]
[342238317,1731621031790,-814.0,9.999e-05,2]
[342238318,1731621031800,-1259.0,9.999e-05,2]
[342238320,1731621031809,-3746.0,9.999e-05,2]
[342238322,1731621031819,-922.0,9.999e-05,2]
[342238323,1731621031828,-3487.0,9.999e-05,2]
[342238324,1731621031837,-150.0,9.999e-05,2]
[342238325,1731621031847,-5930.0,9.999e-05,2]
[342238326,1731621031856,-1159.0,9.999e-05,2]
[342238327,1731621031866,-150.0,9.999e-05,2]